{"text_format":"1","workbook":"xlsx","n_sheets":5,"sheets":["Order form","Price List","Languages","LangBackup","Setup"],"not_rendered":{"charts":0,"images":1,"macros":1,"external_links":1,"defined_names":8,"comments":0,"pivot_tables":0},"unopened":[],"bounds":{"document_bytes":16777216,"sheet_cells":100000,"rows_first":2000,"rows_last":500,"rows_between":2000,"halvings":0,"cell_chars":16384,"cell_head_chars":4096},"cells_cut":0,"cells_raw":0,"read":"whole","date_system":"1900"}

{"sheet":"Order form","index":0,"n_rows":93,"n_cols":39,"rows_kept":93,"cut":false,"hidden":false,"merged":[[14,18,14,25],[15,1,15,35],[17,1,17,6],[18,1,18,6],[27,16,27,35],[29,16,29,35],[28,16,28,35],[2,30,2,35],[34,16,34,21],[34,22,34,26],[34,27,34,29],[34,30,34,35],[1,12,1,27],[2,12,2,27],[1,6,1,11],[1,30,1,35],[11,5,11,13],[7,5,7,13],[8,5,8,13],[9,5,9,13],[10,5,10,13],[7,28,7,35],[8,28,8,35],[9,28,9,35],[10,28,10,35],[11,28,11,35],[11,18,11,25],[7,18,7,25],[8,18,8,25],[9,18,9,25],[10,18,10,25],[42,16,42,35],[46,16,46,35],[47,16,47,35],[51,16,51,35],[52,16,52,35],[56,16,56,35],[55,16,55,35],[53,16,53,26],[5,5,5,13],[5,18,5,25],[5,28,5,35],[6,5,6,13],[6,18,6,25],[6,28,6,35],[12,5,12,13],[12,28,12,35],[37,16,37,35],[13,5,13,13],[12,18,12,25],[21,16,21,35],[13,18,13,25],[13,28,13,35],[14,5,14,13],[14,28,14,35],[53,27,53,28],[53,29,53,35],[54,16,54,26],[54,27,54,28],[54,29,54,35],[39,16,39,35],[35,16,35,35],[36,16,36,35],[17,7,17,35],[40,16,40,35],[38,16,38,35],[45,16,45,35],[48,16,48,35],[18,7,18,35],[22,16,22,35],[23,16,23,35],[24,16,24,35],[25,16,25,35],[31,16,31,35],[26,16,26,35],[30,16,30,25],[32,16,32,35],[33,16,33,35],[41,16,41,35],[76,16,76,35],[77,16,77,35],[78,16,78,35],[92,25,92,35],[92,11,92,12],[72,16,72,35],[92,13,92,15],[92,7,92,10],[58,16,58,35],[61,16,61,35],[85,1,90,35],[75,16,75,35],[69,16,69,27],[69,30,69,35],[59,16,59,35],[60,16,60,35],[62,16,62,35],[63,16,63,35],[79,16,79,35],[80,16,80,35],[81,16,81,35],[57,16,57,35],[66,16,66,27],[67,16,67,27],[68,16,68,27],[66,30,66,35],[67,30,67,35],[68,30,68,35],[73,16,73,35],[74,16,74,35]]}
["DELTA20210310EN"]
[100,"Language",null,null,null,null,"English",null,null,null,null,null,"DELTA STAIRLIFT",null,null,null,null,null,null,null,null,null,null,null,null,null,null,null,"Date",null,{"$f":"TODAY()","v":"2022-01-24"}]
[110,null,null,null,null,null,null,null,null,null,null,null,"ORDER FORM",null,null,null,null,null,null,null,null,null,null,null,null,null,null,null,"Version",null,"DELTA.LE.2021.A"]
[]
[null,null,null,null,null,null,null,null,null,null,null,null,null,null,"Distributor: (always fill out)",null,null,null,null,null,null,null,null,null,null,null,"Delivery address: (always fill out)"]
[120,"Company:",null,null,null,"Lehner Lifttechnik GmbH",null,null,null,null,null,null,null,null,"Company",null,null,null,null,null,null,null,null,null,null,null,"Company"]
[130,"Name:",null,null,null,"Max Lehner",null,null,null,null,null,null,null,null,"Name:",null,null,null,null,null,null,null,null,null,null,null,"Name:"]
[140,"Adress:",null,null,null,"Salling 8",null,null,null,null,null,null,null,null,"Address",null,null,null,null,null,null,null,null,null,null,null,"Address"]
[150,"Postcode:",null,null,null,"A - 4724",null,null,null,null,null,null,null,null,"Postcode",null,null,null,null,null,null,null,null,null,null,null,"Postcode"]
[160,"City:",null,null,null,"Neukirchen am Walde",null,null,null,null,null,null,null,null,"City",null,null,null,null,null,null,null,null,null,null,null,"City"]
[170,"Country:",null,null,null,"Austria",null,null,null,null,null,null,null,null,"Country",null,null,null,null,null,null,null,null,null,null,null,"Country"]
[180,"Phone no:",null,null,null,"+43 7278 3514-0",null,null,null,null,null,null,null,null,"Telephone",null,null,null,null,null,null,null,null,null,null,null,"Telephone"]
[190,"E-mail:",null,null,null,"office@lehnerlifttechnik.at",null,null,null,null,null,null,null,null,"Email"]
[200,"ID:",null,null,null,"ATU22360601",null,null,null,null,null,null,null,null,"ID:"]
[210,"VAT ID:",null,null,null,"ATU22360601",null,null,null,null,null,null,null,null,"VAT ID:"]
[220,"Pick up address for lifts: Spedition Englmayer, Wiesenstrasse 71, 4600 Wels, Austria"]
[]
[null,"Production no.",null,null,null,null,null,"Order reference name (or number)"]
[230]
[]
[null,"Rail specification"]
[1000,"Installation location",null,null,null,null,null,null,null,null,null,null,null,null,null,null,"Indoor"]
[1010,"Installation side",null,null,null,null,null,null,null,null,null,null,null,null,null,null,"Left"]
[1020,"Rail length in meters rounded",null,null,null,null,null,null,null,null,null,null,null,null,null,null,3]
[1030,"Electricity connection",null,null,null,null,null,null,null,null,null,null,null,null,null,null,"-"]
[]
[null,"General platform specifications"]
[1040,"Excecution",null,null,null,null,null,null,null,null,null,null,null,null,null,null,"Platform + rail cut to length (standard)"]
[1050,"Folding seat",null,null,null,null,null,null,null,null,null,null,null,null,null,null,"Without folding seat"]
[1060,"Loading capacity",null,null,null,null,null,null,null,null,null,null,null,null,null,null,"225 kg"]
[1070,"Platform dimension",null,null,null,null,null,null,null,null,null,null,null,null,null,null,"800 x 1000mm",null,null,null,null,null,null,null,null,null,null,"x",null,"mm"]
[1080,"Folding mechanism",null,null,null,null,null,null,null,null,null,null,null,null,null,null,"Automatic folding of platform"]
[1090,"Loading ramps",null,null,null,null,null,null,null,null,null,null,null,null,null,null,"Upper and lower ramp",null,null,null,null,null,null,null,null,null,null,"RAL:",null,"RAL:",null,null,null,null,null,null,null,null,{"$f":"IF(Q33=\"Upper and front ramp (without lower)\",\"Special option - please consult Lehner before order\", \"\")","v":""}]
[1100,"Special 90° side access ramp (folds up 85°)",null,null,null,null,null,null,null,null,null,null,null,null,null,null,"No (standard)"]
[1110,"Ramps length",null,null,null,null,null,null,null,null,null,null,null,null,null,null,"Upper ramp",null,null,null,null,null,"200mm (standard)",null,null,null,null,"Lower ramp",null,null,"200mm (standard)"]
[1120,"Ramps surface",null,null,null,null,null,null,null,null,null,null,null,null,null,null,"Same colour as platform"]
[1130,"Folding sideboard",null,null,null,null,null,null,null,null,null,null,null,null,null,null,"No (standard)"]
[1140,"Platform control",null,null,null,null,null,null,null,null,null,null,null,null,null,null,"All commands on controls on spiral cable (standard)"]
[1150,"External landing controls (always radio)",null,null,null,null,null,null,null,null,null,null,null,null,null,null,"Remote with membrane keypad (standard)"]
[1160,"Type of key",null,null,null,null,null,null,null,null,null,null,null,null,null,null,"Mini key"]
[1170,"Total no. of external landing controls",null,null,null,null,null,null,null,null,null,null,null,null,null,null,2]
[1180,"Position of the external landing controls",null,null,null,null,null,null,null,null,null,null,null,null,null,null,"Wall mounted (standard)"]
[1190,"Removing key in ON position",null,null,null,null,null,null,null,null,null,null,null,null,null,null,"No"]
[]
[null,"Safety features acc. to EN 81-40"]
[1210,"Safety bottom",null,null,null,null,null,null,null,null,null,null,null,null,null,null,"Yes"]
[1220,"Lateral contact bars",null,null,null,null,null,null,null,null,null,null,null,null,null,null,"Yes"]
[1230,"Overload signal",null,null,null,null,null,null,null,null,null,null,null,null,null,null,"Yes"]
[1240,"Visual signal (bespoke solution)",null,null,null,null,null,null,null,null,null,null,null,null,null,null,"No"]
[]
[null,"Further specifications"]
[1260,"Protective cover for outdoor platform",null,null,null,null,null,null,null,null,null,null,null,null,null,null,"No"]
[1270,"Padlock against unfolding of manual platform",null,null,null,null,null,null,null,null,null,null,null,null,null,null,"No (standard)"]
[1280,"Rail fillings",null,null,null,null,null,null,null,null,null,null,null,null,null,null,"None",null,null,null,null,null,null,null,null,null,null,null,null,"pcs"]
[1290,"Warranty",null,null,null,null,null,null,null,null,null,null,null,null,null,null,24,null,null,null,null,null,null,null,null,null,null,null,null,"months"]
[1300,"Stainless steel label",null,null,null,null,null,null,null,null,null,null,null,null,null,null,"None"]
[1310]
[1320]
[1330]
[1340,"Transport box",null,null,null,null,null,null,null,null,null,null,null,null,null,null,"Q1 - Cardboard box length up to 2.35m"]
[1350]
[1360]
[1500,"Colour of battery charger (Weigl option)",null,null,null,null,null,null,null,null,null,null,null,null,null,null,"RAL 7035"]
[1510,"Eccentric platform",null,null,null,null,null,null,null,null,null,null,null,null,null,null,"No"]
[]
[null,"Surface treatment"]
[1370,"Platform and carriage",null,null,null,null,null,null,null,null,null,null,null,null,null,null,"RAL 7035 (standard)",null,null,null,null,null,null,null,null,null,null,null,null,{"$f":"IF(ISNUMBER(FIND(\"Special\",Q67)),\"RAL:\",\"\")","v":""},null,null,null,null,null,null,null,null,{"$f":"IF(Q22=\"outdoor\",\"Please remember to choose surface treatment for outdoor\", \"\")","v":""}]
[1380,"Rail",null,null,null,null,null,null,null,null,null,null,null,null,null,null,"Aluminium (Standard indoor or outdoor)",null,null,null,null,null,null,null,null,null,null,null,null,{"$f":"IF(ISNUMBER(FIND(\"Special\",Q68)),\"RAL:\",\"\")","v":""},null,null,null,null,null,null,null,null,{"$f":"IF(Q22=\"outdoor\",\"Please remember to choose surface treatment for outdoor\", \"\")","v":""}]
[1390,"Brackets and distances",null,null,null,null,null,null,null,null,null,null,null,null,null,null,"RAL 7035 (standard)",null,null,null,null,null,null,null,null,null,null,null,null,{"$f":"IF(ISNUMBER(FIND(\"Special\",Q69)),\"RAL:\",\"\")","v":""},null,null,null,null,null,null,null,null,{"$f":"IF(Q22=\"outdoor\",\"Please remember to choose surface treatment for outdoor\", \"\")","v":""}]
[1400,"Pillars",null,null,null,null,null,null,null,null,null,null,null,null,null,null,"RAL 7035 (standard)",null,null,null,null,null,null,null,null,null,null,null,null,{"$f":"IF(ISNUMBER(FIND(\"Special\",Q70)),\"RAL:\",\"\")","v":""},null,null,null,null,null,null,null,null,{"$f":"IF(Q22=\"outdoor\",\"Please remember to choose surface treatment for outdoor\", \"\")","v":""}]
[]
[null,"Supporting structure"]
[1430,"Fixing of the rails",null,null,null,null,null,null,null,null,null,null,null,null,null,null,"on the pillars only"]
[1440,"Arrangement of pillars",null,null,null,null,null,null,null,null,null,null,null,null,null,null,"on the steps (standard)"]
[1450,"Vertical adjustment slots on pillars",null,null,null,null,null,null,null,null,null,null,null,null,null,null,"Yes"]
[1460,"Pillar base",null,null,null,null,null,null,null,null,null,null,null,null,null,null,"not specified"]
[]
[]
[]
[1520,"Bigger pipe thickness ø40x4mm",null,null,null,null,null,null,null,null,null,null,null,null,null,null,"No"]
[1530,"Bigger pillar profile 60x60x6mm",null,null,null,null,null,null,null,null,null,null,null,null,null,null,"No"]
[1540,"Preassembled rail",null,null,null,null,null,null,null,null,null,null,null,null,null,null,"Yes"]
[]
[null,"Additional information"]
[]
[1480]
[]
[]
[]
[]
[]
[]
[240,"Delivery date",null,null,null,null,null,"Week",null,null,null,null,null,2022,null,null,null,null,null,null,null,"Prepared by"]

{"sheet":"Price List","index":1,"n_rows":60,"n_cols":9,"rows_kept":60,"cut":false,"hidden":true,"merged":[[22,1,32,1],[33,1,37,1],[3,10,3,11],[1,2,1,6],[6,3,6,5],[7,1,10,1],[12,1,21,1],[38,1,42,1],[44,1,47,1],[48,1,55,1],[55,2,55,7],[59,2,59,5]]}
[null,"Price list","SP-DELTA",null,null,null,{"$f":"'Order form'!AE3","v":"DELTA.LE.2021.A"}]
[null,"Order reference name (or number)",{"$f":"'Order form'!H19","v":0}]
[null,"Customer (client):","Lehner Lifttechnik GmbH"]
[null,null,"Salling 8"]
[null,null,"A - 4724"]
[null,null,"Neukirchen am Walde"]
[null,null,"Item",null,null,null,"unit","EUR/unit","Price EUR"]
[null,"Platform price","Basic price for lift with 3m steel rail cut to length",{"$f":"IF(OR(AND('Order form'!Q28=\"Platform + rail cut to length (standard)\",'Order form'!Q68<>\"aluminium (indoor or outdoor)\")),1,)","v":1},null,null,"pc",{"$f":"'[1]Price list'!$C8","v":50},{"$f":"D8*H8","v":50}]
[null,null,"Basic price for lift with 3m aluminium rail cut to length",{"$f":"IF(OR(AND('Order form'!Q28=\"Platform + rail cut to length (standard)\",'Order form'!Q68=\"aluminium (indoor or outdoor)\")),1,)","v":0},null,null,"pc",{"$f":"'[1]Price list'!$C9","v":50},{"$f":"D9*H9","v":0}]
[null,null,"Surcharge for stainless platform",{"$f":"IF(OR('Order form'!Q67=\"stainless 304 + Special RAL\",'Order form'!Q67=\"stainless 316 + Special RAL\"),1,)","v":0},null,null,"pc",{"$f":"'[1]Price list'!$C10","v":50},{"$f":"D10*H10","v":0}]
[null,null,"Surcharge for zinc sprayed platform",{"$f":"IF(OR('Order form'!Q67=\"zinc + RAL 7035 (outdoor standard)\",'Order form'!Q67=\"zinc + Special RAL\"),1,)","v":0},null,null,"pc",{"$f":"'[1]Price list'!$C11","v":50},0]
[null,"Location","Indoor / Outdoor",null,null,null,null,{"$f":"'[1]Price list'!$C12","v":50}]
[null,"Rail","Steel rail cut to length",{"$f":"IF(AND('Order form'!Q24>3,AND(OR('Order form'!Q68=\"RAL 9007 (standard indoor)\",'Order form'!Q68=\"Special RAL\",'Order form'!Q68=\"Stainless 304\",'Order form'!Q68=\"Stainless 316 (special surcharge)\"))),'Order form'!Q24-3,0)","v":0},null,null,"m",{"$f":"'[1]Price list'!$C13","v":50},{"$f":"H13*D13","v":0}]
[null,null,"Aluminium stock rail (in 3m pieces)",{"$f":"IF(AND('Order form'!Q24>3,AND('Order form'!Q68=\"aluminium (indoor or outdoor)\")),'Order form'!Q24-3,0)","v":0},null,null,"m",{"$f":"'[1]Price list'!$C14","v":50},{"$f":"H14*D14","v":0}]
[null,null,"Stainless rail 304 cut to length",{"$f":"IF(AND('Order form'!Q24>0,'Order form'!Q68=\"stainless 304\"),'Order form'!Q24,0)","v":0},null,null,"m",{"$f":"'[1]Price list'!$C15","v":50},0]
[null,null,"Stainless rail 316 cut to length",{"$f":"IF(AND('Order form'!Q24,'Order form'!Q68=\"stainless 316 (special surcharge)\"),'Order form'!Q24,0)","v":0},null,null,"m",{"$f":"'[1]Price list'!$C16","v":50},0]
[null,null,"Color treated pillars (each 0,6 m)",{"$f":"CEILING(E17,1)","v":6},{"$f":"IF(OR('Order form'!Q73=\"on the pillars only\",'Order form'!Q73=\"on the wall + pillars\"),('Order form'!Q24/0.6+1),0)","v":6},null,"pc",{"$f":"'[1]Price list'!$C17","v":50},{"$f":"H17*D17","v":300}]
[null,null,"Surcharge - Fire zinc - pillars (each 0,6 m)",{"$f":"IF(OR('Order form'!Q70=\"zinc + RAL 7035 (outdoor standard)\",'Order form'!Q70=\"zinc + special RAL\",'Order form'!Q70=\"zinc\"),D17,0)","v":0},null,null,"pc",{"$f":"'[1]Price list'!$C18","v":50},{"$f":"H18*D18","v":0}]
[null,null,"Surcharge - Stainless steel pillars (each 0,6 m)",{"$f":"IF(OR('Order form'!Q70=\"stainless 304\",'Order form'!Q70=\"stainless 316 (special surcharge)\"),D17,0)","v":0},null,null,"pc",{"$f":"'[1]Price list'!$C19","v":50},{"$f":"H19*D19","v":0}]
[null,null,"Extra pillars for controls",{"$f":"IF('Order form'!Q42=\"Pillar mounted\",'Order form'!Q41,0)","v":0},null,null,"pc",{"$f":"'[1]Price list'!$C20","v":50},0]
[null,null,"Surcharge - Stainless steel extra pillars for controls",{"$f":"IF(OR('Order form'!Q70=\"stainless 304\",'Order form'!Q70=\"stainless 316 (special surcharge)\"),D20,0)","v":0},null,null,"pc",{"$f":"'[1]Price list'!$C21","v":50},0]
[null,null,"Adjustable slots on pillars",{"$f":"IF('Order form'!Q75=\"yes\",D17,0)","v":6},null,null,"pc",{"$f":"'[1]Price list'!$C22","v":50},{"$f":"H22*D22","v":300}]
[null,"Platform","Automatic folding",{"$f":"IF('Order form'!Q32=\"automatic\",1,0)","v":0},null,null,"pc",{"$f":"'[1]Price list'!$C23","v":50},{"$f":"H23*D23","v":0}]
[null,null,"Non-standard platform dimensions",{"$f":"IF('Order form'!Q31=\"special\",1,0)","v":0},null,null,"pc",{"$f":"'[1]Price list'!$C24","v":50},0]
[null,null,"Platform with front loading ramp",{"$f":"IF(OR('Order form'!Q33=\"Upper and lower ramp + front ramp (90° side access)\",'Order form'!Q33=\"Upper and front (without lower)\"),1,0)","v":0},null,null,"pc",{"$f":"'[1]Price list'!$C25","v":50},{"$f":"H25*D25","v":0}]
[null,null,"Front folding ramp 85o",{"$f":"IF('Order form'!Q34=\"yes\",1,0)","v":0},null,null,"pc",{"$f":"'[1]Price list'!$C26","v":50},{"$f":"H26*D26","v":0}]
[null,null,"Platform without lower loading ramp",{"$f":"IF('Order form'!Q33=\"Upper and front ramp (without lower)\",1,0)","v":0},null,null,"pc",{"$f":"'[1]Price list'!$C27","v":50},{"$f":"H27*D27","v":0}]
[null,null,"Folding sideboard",{"$f":"IF('Order form'!Q37=\"yes\",1,0)","v":0},null,null,"pc",{"$f":"'[1]Price list'!$C28","v":50},0]
[null,null,"The length of loading ramps 300mm",{"$f":"IF('Order form'!W35=\"300mm (special)\",1,(IF('Order form'!AE35=\"300mm (special)\",1,0)))","v":0},null,null,"pc",{"$f":"'[1]Price list'!$C29","v":50},0]
[null,null,"Plastic cover",{"$f":"IF('Order form'!Q52=\"yes\",1,0)","v":0},null,null,"pc",{"$f":"'[1]Price list'!$C30","v":50},{"$f":"H30*D30","v":0}]
[null,null,"Padlock against unfolding of the platform by unauthorized user ",{"$f":"IF('Order form'!Q53=\"yes\",1,0)","v":0},null,null,"pc",{"$f":"'[1]Price list'!$C31","v":50},{"$f":"H31*D31","v":0}]
[null,null,"Folding upholstery seat",{"$f":"IF('Order form'!Q29=\"With upholstery folding seat\",1,0)","v":0},null,null,"pc",{"$f":"'[1]Price list'!$C32","v":50},{"$f":"H32*D32","v":0}]
[null,null,"Folding steel seat",{"$f":"IF('Order form'!Q29=\"With steel folding seat\",1,0)","v":0},null,null,"pc",{"$f":"'[1]Price list'!$C33","v":50},{"$f":"H33*D33","v":0}]
[null,"Rail fillings","Glass fillings between pillars",{"$f":"IF('Order form'!Q54=\"Connex glass\",'Order form'!AB54,0)","v":0},null,null,"pc",{"$f":"'[1]Price list'!$C34","v":50},{"$f":"H34*D34","v":0}]
[null,null,"Perforated metal plates between pillars",{"$f":"IF('Order form'!Q54=\"Perforated metal plates\",'Order form'!AB54,0)","v":0},null,null,"pc",{"$f":"'[1]Price list'!$C35","v":50},0]
[null,null,"Wooden fillings",{"$f":"IF('Order form'!Q54=\"Wooden\",'Order form'!AB54,0)","v":0},null,null,"pc",{"$f":"'[1]Price list'!$C36","v":50},{"$f":"H36*D36","v":0}]
[null,null,"Steel rods between pillars",{"$f":"IF('Order form'!Q54=\"Steel rods\",'Order form'!AB54,0)","v":0},null,null,"pc",{"$f":"'[1]Price list'!$C37","v":50},0]
[null,null,"Stainless steel fillings",{"$f":"IF('Order form'!Q54=\"Stainless steel rods\",'Order form'!AB54,0)","v":0},null,null,"pc",{"$f":"'[1]Price list'!$C38","v":50},0]
[null,"Controls","Radio controls with large push buttons (in compliance with EN 81-40)",{"$f":"IF('Order form'!Q39=\"Big push buttons (special)\",'Order form'!Q41,0)","v":0},null,null,"pc",{"$f":"'[1]Price list'!$C39","v":50},{"$f":"H39*D39","v":0}]
[null,null,"Extra controls (2 pcs included in basic price)",{"$f":"'Order form'!Q41-2","v":0},null,null,"pc",{"$f":"'[1]Price list'!$C40","v":0},0]
[null,null,"Removing key in ON position",{"$f":"IF('Order form'!Q43=\"yes\",1,0)","v":0},null,null,"pc",{"$f":"'[1]Price list'!$C41","v":0},0]
[null,null,"EURO key",{"$f":"IF('Order form'!Q40=\"Euro key\",'Order form'!Q41,0)","v":0},null,null,"pc",{"$f":"'[1]Price list'!$C42","v":0},{"$f":"H42*D42","v":0}]
[null,null,"Dual controls",{"$f":"IF(OR('Order form'!Q38=\"Dual controls with joystick\",'Order form'!Q38=\"Dual controls with push buttons\"),1,0)","v":0},null,null,"pc",{"$f":"'[1]Price list'!$C43","v":0},{"$f":"H43*D43","v":0}]
[null,"Surface treatment","Non-standard RAL color treatment ",{"$f":"IF(OR('Order form'!AD67=\"RAL:\",'Order form'!AD68=\"RAL:\",'Order form'!AD69=\"RAL:\",'Order form'!AD70=\"RAL:\"),1,0)","v":0},null,null,"pc",{"$f":"'[1]Price list'!$C44","v":0},{"$f":"H44*D44","v":0}]
[null,"Safety features in compliance with EN 81-40","Safety bottom",{"$f":"IF('Order form'!Q46=\"yes\",1,0)","v":1},null,null,"pc",{"$f":"'[1]Price list'!$C45","v":0},0]
[null,null,"Lateral safety pads",{"$f":"IF('Order form'!Q48=\"yes\",1,0)","v":1},null,null,"pc",{"$f":"'[1]Price list'!$C46","v":0},0]
[null,null,"Visual signals (bespoke solution) ",{"$f":"IF('Order form'!Q49=\"yes\",1,0)","v":0},null,null,"pc",{"$f":"'[1]Price list'!$C47","v":0},{"$f":"D47*H47","v":0}]
[null,null,"Overload signals",{"$f":"IF('Order form'!Q48=\"yes\",1,0)","v":1},null,null,"pc",{"$f":"'[1]Price list'!$C48","v":0},{"$f":"H48*D48","v":0}]
[null,"Additional costs","Warranty",24,null,null,"1 month",{"$f":"'[1]Price list'!$C49","v":0},{"$f":"H49*D49","v":0}]
[null,null,null,null,null,null,null,{"$f":"'[1]Price list'!$C50","v":0}]
[null,null,null,null,null,null,null,{"$f":"'[1]Price list'!$C51","v":0}]
[null,null,null,24,null,null,null,{"$f":"'[1]Price list'!$C52","v":0}]
[null,null,null,null,null,null,null,{"$f":"'[1]Price list'!$C53","v":0}]
[null,null,"Transport box",{"$f":"IF('Order form'!Q60=\"none\",0,1)","v":1},null,null,"pc",{"$f":"'[1]Price list'!$C54","v":0},{"$f":"H54*D54","v":0}]
[null,null,null,null,null,null,null,{"$f":"'[1]Price list'!$C55","v":0}]
[]
[250,"Total price VAT excl.:",null,null,null,null,null,null,{"$f":"SUM(I8:I56)","v":650}]
[260,"Discount:",null,null,null,null,null,0,{"$f":"H58*I57","v":0}]
[270,"Final price, VAT excl.:",null,null,null,null,null,null,{"$f":"I57-I58","v":650}]
[280,"Prepared by:"]

{"sheet":"Languages","index":2,"n_rows":239,"n_cols":6,"rows_kept":239,"cut":false,"hidden":true,"merged":[]}
["Cell","Type","English","Deutsch","French","Español"]
[{"$f":"CELL(\"address\",'Order form'!M2)","v":"'[DELTA_Order form_2022.xlsm]Order form'!$M$2"},"Label","DELTA STAIRLIFT","DELTA PLATTFORMLIFT","DELTA MONTE-ESCALIER","DELTA SALVAESCALERA"]
[{"$f":"CELL(\"address\",'Order form'!M3)","v":"'[DELTA_Order form_2022.xlsm]Order form'!$M$3"},"Label","ORDER FORM","BESTELLFORMULAR","BON DE COMMANDE","FORMULARIO DE PEDIDO"]
[{"$f":"CELL(\"address\",'Order form'!AC2)","v":"'[DELTA_Order form_2022.xlsm]Order form'!$AC$2"},"Label","Date","Datum","Date","Fecha"]
[{"$f":"CELL(\"address\",'Order form'!B2)","v":"'[DELTA_Order form_2022.xlsm]Order form'!$B$2"},"Label","Language","Sprache","La langue","Idioma"]
[{"$f":"CELL(\"address\",'Order form'!AC3)","v":"'[DELTA_Order form_2022.xlsm]Order form'!$AC$3"},"Label","Version","Version","Version","Versión"]
[{"$f":"CELL(\"address\",'Order form'!O5)","v":"'[DELTA_Order form_2022.xlsm]Order form'!$O$5"},"Label","Distributor: (always fill out)","Händler: (immer ausfüllen)","Distributeur:","Distribuidor: (siempre llene)"]
[{"$f":"CELL(\"address\",'Order form'!AA5)","v":"'[DELTA_Order form_2022.xlsm]Order form'!$AA$5"},"Label","Delivery address: (always fill out)","Lieferadresse: (immer ausfüllen)","Adresse de livraison:","Dirección de entrega: (siempre completar)"]
[{"$f":"CELL(\"address\",'Order form'!O6)","v":"'[DELTA_Order form_2022.xlsm]Order form'!$O$6"},"Label","Company","Firma","Société","Empresa"]
[{"$f":"CELL(\"address\",'Order form'!AA6)","v":"'[DELTA_Order form_2022.xlsm]Order form'!$AA$6"},"Label","Company","Firma","Société","Empresa"]
[{"$f":"CELL(\"address\",'Order form'!O8)","v":"'[DELTA_Order form_2022.xlsm]Order form'!$O$8"},"Label","Address","Anschrift","Adresse","Dirección"]
[{"$f":"CELL(\"address\",'Order form'!AA8)","v":"'[DELTA_Order form_2022.xlsm]Order form'!$AA$8"},"Label","Address","Anschrift","Adresse","Dirección"]
[{"$f":"CELL(\"address\",'Order form'!O9)","v":"'[DELTA_Order form_2022.xlsm]Order form'!$O$9"},"Label","Postcode","PLZ","Code postal","Código postal"]
[{"$f":"CELL(\"address\",'Order form'!AA9)","v":"'[DELTA_Order form_2022.xlsm]Order form'!$AA$9"},"Label","Postcode","PLZ","Code postal","Código postal"]
[{"$f":"CELL(\"address\",'Order form'!O10)","v":"'[DELTA_Order form_2022.xlsm]Order form'!$O$10"},"Label","City","Stadt","Ville","Ciudad"]
[{"$f":"CELL(\"address\",'Order form'!AA10)","v":"'[DELTA_Order form_2022.xlsm]Order form'!$AA$10"},"Label","City","Stadt","Ville","Ciudad"]
[{"$f":"CELL(\"address\",'Order form'!O11)","v":"'[DELTA_Order form_2022.xlsm]Order form'!$O$11"},"Label","Country","Land","Le pays","País"]
[{"$f":"CELL(\"address\",'Order form'!AA11)","v":"'[DELTA_Order form_2022.xlsm]Order form'!$AA$11"},"Label","Country","Land","Le pays","País"]
[{"$f":"CELL(\"address\",'Order form'!O12)","v":"'[DELTA_Order form_2022.xlsm]Order form'!$O$12"},"Label","Telephone","Telefon","Téléphone","Teléfono"]
[{"$f":"CELL(\"address\",'Order form'!AA12)","v":"'[DELTA_Order form_2022.xlsm]Order form'!$AA$12"},"Label","Telephone","Telefon","Téléphone","Teléfono"]
[]
[]
[]
[]
[]
[{"$f":"CELL(\"address\",'Order form'!B22)","v":"'[DELTA_Order form_2022.xlsm]Order form'!$B$22"},"Label","Installation location","Installationsort","Lieu d'installation","Ubicación de la instalación"]
[{"$f":"CELL(\"address\",'Order form'!B23)","v":"'[DELTA_Order form_2022.xlsm]Order form'!$B$23"},"Label","Installation side","Montageseite","Côté d'installation","Lado de la instalación"]
[{"$f":"CELL(\"address\",'Order form'!B16)","v":"'[DELTA_Order form_2022.xlsm]Order form'!$B$16"},"Label","Pick up address for lifts: Spedition Englmayer, Wiesenstrasse 71, 4600 Wels, Austria","ABHOLADRESSE: Spedition Englmayer, Wiesenstrasse 71, 4600 Wels, Austria","Adresse de ramassage: Spedition Englmayer, Wiesenstrasse 71, 4600 Wels, Austria","Dirección de recogida de los equipos: Spedition Englmayer, Wiesenstrasse 71, 4600 Wels, Austria"]
[{"$f":"CELL(\"address\",'Order form'!B18)","v":"'[DELTA_Order form_2022.xlsm]Order form'!$B$18"},"Label","Production no.","Produktionsnr.","Num. de production","Producción no."]
[{"$f":"CELL(\"address\",'Order form'!H18)","v":"'[DELTA_Order form_2022.xlsm]Order form'!$H$18"},"Label","Order reference name (or number)","Auftragsreferenz (Name oder Nummer)","Nom de référence de la commande (ou numéro)","Nombre de referencia del pedido (o número)"]
[{"$f":"CELL(\"address\",'Order form'!B21)","v":"'[DELTA_Order form_2022.xlsm]Order form'!$B$21"},"Label","Rail specification","Schienenspezifikation","Spécification de rail","Especificación de la guia"]
[{"$f":"CELL(\"address\",'Order form'!B24)","v":"'[DELTA_Order form_2022.xlsm]Order form'!$B$24"},"Label","Rail length in meters rounded","Schienenlänge (ungefähr in m)","Longueur du rail en mètres arrondis","Longitud de la guia en metros redondeados"]
[{"$f":"CELL(\"address\",'Order form'!B25)","v":"'[DELTA_Order form_2022.xlsm]Order form'!$B$25"},"Label","Electricity connection","Elektroanschluss","Connexion electrique","Conexion electrica"]
[{"$f":"CELL(\"address\",'Order form'!Q22)","v":"'[DELTA_Order form_2022.xlsm]Order form'!$Q$22"},"Dropdown","Indoor","Innen","Intérieur","Interior"]
[{"$f":"CELL(\"address\",'Order form'!Q22)","v":"'[DELTA_Order form_2022.xlsm]Order form'!$Q$22"},"Dropdown","Outdoor","Im Außenbereich","De plein air","Al aire libre"]
[{"$f":"CELL(\"address\",'Order form'!Q23)","v":"'[DELTA_Order form_2022.xlsm]Order form'!$Q$23"},"Dropdown","Left","Links","La gauche","Izquierda"]
[{"$f":"CELL(\"address\",'Order form'!Q23)","v":"'[DELTA_Order form_2022.xlsm]Order form'!$Q$23"},"Dropdown","Right","Rechts","Droite","Derecha"]
[{"$f":"CELL(\"address\",'Order form'!Q25)","v":"'[DELTA_Order form_2022.xlsm]Order form'!$Q$25"},"Dropdown","-","-","-","-"]
[{"$f":"CELL(\"address\",'Order form'!Q25)","v":"'[DELTA_Order form_2022.xlsm]Order form'!$Q$25"},"Dropdown","Upper stop","Untere Haltestelle","Arrêt haut","Parada superior"]
[{"$f":"CELL(\"address\",'Order form'!Q25)","v":"'[DELTA_Order form_2022.xlsm]Order form'!$Q$25"},"Dropdown","Lower stop","Obere Haltestelle","Arrêt bas","Parada inferior"]
[{"$f":"CELL(\"address\",'Order form'!B27)","v":"'[DELTA_Order form_2022.xlsm]Order form'!$B$27"},"Label","General platform specifications","Plattformausführung","Données techniques","Especificaciones generales de la plataforma"]
[{"$f":"CELL(\"address\",'Order form'!B28)","v":"'[DELTA_Order form_2022.xlsm]Order form'!$B$28"},"Label","Excecution","Ausführung","Exécution","Ejecución"]
[{"$f":"CELL(\"address\",'Order form'!B29)","v":"'[DELTA_Order form_2022.xlsm]Order form'!$B$29"},"Label","Folding seat","Klappsitz","Siège rabattable","Asiento plegable"]
[{"$f":"CELL(\"address\",'Order form'!B30)","v":"'[DELTA_Order form_2022.xlsm]Order form'!$B$30"},"Label","Loading capacity","Traglast","Charge max.","Capacidad de carga"]
[{"$f":"CELL(\"address\",'Order form'!B31)","v":"'[DELTA_Order form_2022.xlsm]Order form'!$B$31"},"Label","Platform dimension","Plattformgröße","Dimensions plate-forme","Dimensión de la plataforma"]
[{"$f":"CELL(\"address\",'Order form'!B32)","v":"'[DELTA_Order form_2022.xlsm]Order form'!$B$32"},"Label","Folding mechanism","Klappmechanismus","Ouverture/fermeture plate-forme","Mecanismo de plegado"]
[{"$f":"CELL(\"address\",'Order form'!B33)","v":"'[DELTA_Order form_2022.xlsm]Order form'!$B$33"},"Label","Loading ramps","Auffahrrampen","Rampes d'accès","Rampas de acceso"]
[{"$f":"CELL(\"address\",'Order form'!B34)","v":"'[DELTA_Order form_2022.xlsm]Order form'!$B$34"},"Label","Special 90° side access ramp (folds up 85°)","Spezielle 90° seitliche Auffahrrampe (klappt 85°)","Rampe d'accès latérale 85°","Rampa lateral plegable de 85 grados"]
[{"$f":"CELL(\"address\",'Order form'!B35)","v":"'[DELTA_Order form_2022.xlsm]Order form'!$B$35"},"Label","Ramps length","Rampenlänge","Longueur des rampes","Longitud de rampas"]
[{"$f":"CELL(\"address\",'Order form'!Q35)","v":"'[DELTA_Order form_2022.xlsm]Order form'!$Q$35"},"Label","Upper ramp","Obere Rampe","Rampe superieure","Rampa superior"]
[{"$f":"CELL(\"address\",'Order form'!AB35)","v":"'[DELTA_Order form_2022.xlsm]Order form'!$AB$35"},"Label","Lower ramp","Untere Rampe","Rampe inferieure","Rampa inferior"]
[{"$f":"CELL(\"address\",'Order form'!B36)","v":"'[DELTA_Order form_2022.xlsm]Order form'!$B$36"},"Label","Ramps surface","Rampenoberfläche","Couleur des rampes","Superficie de rampas"]
[{"$f":"CELL(\"address\",'Order form'!B37)","v":"'[DELTA_Order form_2022.xlsm]Order form'!$B$37"},"Label","Folding sideboard","Klappbares Seitenboard","Panneau latéral pliant","Regleta lateral plegable"]
[{"$f":"CELL(\"address\",'Order form'!B38)","v":"'[DELTA_Order form_2022.xlsm]Order form'!$B$38"},"Label","Platform control","Plattformbedienung","Commande sur plate-forme","Versión de control de plataforma"]
[{"$f":"CELL(\"address\",'Order form'!B39)","v":"'[DELTA_Order form_2022.xlsm]Order form'!$B$39"},"Label","External landing controls (always radio)","Funk-Außensteuerungen","Stations de rappel à IR","Controles de aterrizaje externos (siempre radio)"]
[{"$f":"CELL(\"address\",'Order form'!B40)","v":"'[DELTA_Order form_2022.xlsm]Order form'!$B$40"},"Label","Type of key","Schlüssel","Clé","Tipo de llave"]
[{"$f":"CELL(\"address\",'Order form'!B41)","v":"'[DELTA_Order form_2022.xlsm]Order form'!$B$41"},"Label","Total no. of external landing controls","Anzahl der Außensteuerungen","Numero des télécommandes","Total no. de controles de aterrizaje externos"]
[{"$f":"CELL(\"address\",'Order form'!B42)","v":"'[DELTA_Order form_2022.xlsm]Order form'!$B$42"},"Label","Position of the external landing controls","Position der Außensteuerungen","Position des télécommandes","Posición de los mandos de aterrizaje externos"]
[{"$f":"CELL(\"address\",'Order form'!B43)","v":"'[DELTA_Order form_2022.xlsm]Order form'!$B$43"},"Label","Removing key in ON position","Schlüssel abziehbar ","Clé amovible","Extracción de llave en posición ON"]
[]
[{"$f":"CELL(\"address\",'Order form'!Q28)","v":"'[DELTA_Order form_2022.xlsm]Order form'!$Q$28"},"Dropdown","Platform + rail cut to length (standard)","Kompletter Lift mit maßgefertigter Schiene","Plateforme + rail sur mesure (standard)","Plataforma + guía cortado a la longitud (estándar)"]
[{"$f":"CELL(\"address\",'Order form'!Q28)","v":"'[DELTA_Order form_2022.xlsm]Order form'!$Q$28"},"Dropdown","Rail only","Nur Schiene","Rail seulement","Solo guía"]
[{"$f":"CELL(\"address\",'Order form'!Q29)","v":"'[DELTA_Order form_2022.xlsm]Order form'!$Q$29"},"Dropdown","Without folding seat","Ohne Klappsitz","Sans siège rabattable","Sin asiento abatible"]
[{"$f":"CELL(\"address\",'Order form'!Q29)","v":"'[DELTA_Order form_2022.xlsm]Order form'!$Q$29"},"Dropdown","With upholstery folding seat (indoor)","Klappsitz mit Polsterung (Innenanlage)","Siège pliant avec rembourrage","Asiento abatible tapizado (para interior)"]
[{"$f":"CELL(\"address\",'Order form'!Q29)","v":"'[DELTA_Order form_2022.xlsm]Order form'!$Q$29"},"Dropdown","With steel folding seat (outdoor)","Klappsitz aus Stahl beschichtet (Außenanlage)","Siège rabattable en acier revêtu","Asiento abatible de acero (para exterior)"]
[{"$f":"CELL(\"address\",'Order form'!Q30)","v":"'[DELTA_Order form_2022.xlsm]Order form'!$Q$30"},"Dropdown","150 kg","150 kg","150 kg","150 kg"]
[{"$f":"CELL(\"address\",'Order form'!Q30)","v":"'[DELTA_Order form_2022.xlsm]Order form'!$Q$30"},"Dropdown"]
[{"$f":"CELL(\"address\",'Order form'!Q30)","v":"'[DELTA_Order form_2022.xlsm]Order form'!$Q$30"},"Dropdown","200 kg","200 kg","200 kg","200 kg"]
[{"$f":"CELL(\"address\",'Order form'!Q30)","v":"'[DELTA_Order form_2022.xlsm]Order form'!$Q$30"},"Dropdown","225 kg","225 kg","225 kg","225 kg"]
[{"$f":"CELL(\"address\",'Order form'!Q30)","v":"'[DELTA_Order form_2022.xlsm]Order form'!$Q$30"},"Dropdown","250 kg","250 kg","250 kg","250 kg"]
[{"$f":"CELL(\"address\",'Order form'!Q30)","v":"'[DELTA_Order form_2022.xlsm]Order form'!$Q$30"},"Dropdown","300 kg","300 kg","300 kg","300 kg"]
[{"$f":"CELL(\"address\",'Order form'!Q31)","v":"'[DELTA_Order form_2022.xlsm]Order form'!$Q$31"},"Dropdown","700 x 750 mm","700 x 750 mm","700 x 750 mm","700 x 750 mm"]
[{"$f":"CELL(\"address\",'Order form'!Q31)","v":"'[DELTA_Order form_2022.xlsm]Order form'!$Q$31"},"Dropdown","750 x 850 mm","750 x 850 mm","750 x 850 mm","750 x 850 mm"]
[{"$f":"CELL(\"address\",'Order form'!Q31)","v":"'[DELTA_Order form_2022.xlsm]Order form'!$Q$31"},"Dropdown","800 x 900 mm","800 x 900 mm","800 x 900 mm","800 x 900 mm"]
[{"$f":"CELL(\"address\",'Order form'!Q31)","v":"'[DELTA_Order form_2022.xlsm]Order form'!$Q$31"},"Dropdown","800 x 1000mm","800 x 1000mm","800 x 1000mm","800 x 1000 mm"]
[{"$f":"CELL(\"address\",'Order form'!Q31)","v":"'[DELTA_Order form_2022.xlsm]Order form'!$Q$31"},"Dropdown","Special","Special","Special","Especial"]
[{"$f":"CELL(\"address\",'Order form'!Q32)","v":"'[DELTA_Order form_2022.xlsm]Order form'!$Q$32"},"Dropdown","Automatic folding of platform","Automatisches Klappen der Plattform","Automatiquement","Automático"]
[{"$f":"CELL(\"address\",'Order form'!Q32)","v":"'[DELTA_Order form_2022.xlsm]Order form'!$Q$32"},"Dropdown","Manual folding of platform","Manuelles Klappen der Plattform","Manuellement","Manual"]
[{"$f":"CELL(\"address\",'Order form'!Q33)","v":"'[DELTA_Order form_2022.xlsm]Order form'!$Q$33"},"Dropdown","Upper and lower ramp","Obere und untere Rampe","Rampe supérieure et inférieure","Rampa superior e inferior"]
[{"$f":"CELL(\"address\",'Order form'!Q33)","v":"'[DELTA_Order form_2022.xlsm]Order form'!$Q$33"},"Dropdown","Upper and lower ramp + 90° side access ramp ","Obere und untere Rampe + 90° seitliche Auffahrrampe","Rampe supérieure et inférieure + latérale à 90 °","Rampa superior e inferior + acceso lateral a 90 °"]
[{"$f":"CELL(\"address\",'Order form'!Q33)","v":"'[DELTA_Order form_2022.xlsm]Order form'!$Q$33"},"Dropdown","Upper and 90° side access ramp (without lower)","Obere und 90° seitliche Auffahrrampe (ohne untere Rampe)","Rampe supérieure et latérale (sans la rampe intérieure)","Rampa superior y lateral (sin rampa inferior)"]
[{"$f":"CELL(\"address\",'Order form'!Q34)","v":"'[DELTA_Order form_2022.xlsm]Order form'!$Q$34"},"Dropdown","No (standard)","Nein (Standard)","Non (Standard)","No (estándar)"]
[{"$f":"CELL(\"address\",'Order form'!Q34)","v":"'[DELTA_Order form_2022.xlsm]Order form'!$Q$34"},"Dropdown","Yes","Ja","Oui","Sí"]
[{"$f":"CELL(\"address\",'Order form'!W35)","v":"'[DELTA_Order form_2022.xlsm]Order form'!$W$35"},"Dropdown","150mm","150mm","150mm","150mm"]
[{"$f":"CELL(\"address\",'Order form'!W35)","v":"'[DELTA_Order form_2022.xlsm]Order form'!$W$35"},"Dropdown","200mm (standard)","200mm (Standard)","200mm (standard)","200mm (estándar)"]
[{"$f":"CELL(\"address\",'Order form'!W35)","v":"'[DELTA_Order form_2022.xlsm]Order form'!$W$35"},"Dropdown","300mm (special)","300mm (Spezial)","300mm (special)","300mm (especial)"]
[{"$f":"CELL(\"address\",'Order form'!AE35)","v":"'[DELTA_Order form_2022.xlsm]Order form'!$AE$35"},"Dropdown","150mm","150mm","150mm","150mm"]
[{"$f":"CELL(\"address\",'Order form'!AE35)","v":"'[DELTA_Order form_2022.xlsm]Order form'!$AE$35"},"Dropdown","200mm (standard)","200mm (Standard)","200mm (standard)","200mm (estándar)"]
[{"$f":"CELL(\"address\",'Order form'!AE35)","v":"'[DELTA_Order form_2022.xlsm]Order form'!$AE$35"},"Dropdown","300mm (special)","300mm (Spezial)","300mm (special)","300mm (especial)"]
[{"$f":"CELL(\"address\",'Order form'!Q36)","v":"'[DELTA_Order form_2022.xlsm]Order form'!$Q$36"},"Dropdown","Same colour as platform","Gleiche Farbe wie Plattform","La même couleur que la plate-forme","Mismo color que la plataforma"]
[{"$f":"CELL(\"address\",'Order form'!Q36)","v":"'[DELTA_Order form_2022.xlsm]Order form'!$Q$36"},"Dropdown","No colour (aluminium natural)","Keine Farbe (Aluminium unbeschichtet)","Pas de couleur (aluminium non revêtu)","Sin color (aluminio natural)"]
[{"$f":"CELL(\"address\",'Order form'!Q37)","v":"'[DELTA_Order form_2022.xlsm]Order form'!$Q$37"},"Dropdown","Yes","Ja","oui","Sí"]
[{"$f":"CELL(\"address\",'Order form'!Q37)","v":"'[DELTA_Order form_2022.xlsm]Order form'!$Q$37"},"Dropdown","No (standard)","Nein (Standard)","Non (Standard)","No (estándar)"]
[{"$f":"CELL(\"address\",'Order form'!Q38)","v":"'[DELTA_Order form_2022.xlsm]Order form'!$Q$38"},"Dropdown","All commands on controls on spiral cable (standard)","Handkassette am Spiralkabel (Standard)","Commande sur fil spiralé","Comandos solo de cable espiral (estándar)"]
[{"$f":"CELL(\"address\",'Order form'!Q38)","v":"'[DELTA_Order form_2022.xlsm]Order form'!$Q$38"},"Dropdown","Alarm + STOP on platform + controls on spiral cable","Alarm + STOP auf Plattform + Handkassette","Alarm + STOP sur plateforme + commande sur fil spiralé","Alarma + STOP en plataforma + controles en cable espiral"]
[{"$f":"CELL(\"address\",'Order form'!Q38)","v":"'[DELTA_Order form_2022.xlsm]Order form'!$Q$38"},"Dropdown","Alarm + STOP + joystick on platform","Alarm + STOP + Joystick auf Plattform","Alarm + STOP + joystick sur la plateforme","Alarma + STOP + joystick en plataforma"]
[{"$f":"CELL(\"address\",'Order form'!Q38)","v":"'[DELTA_Order form_2022.xlsm]Order form'!$Q$38"},"Dropdown","Alarm + STOP + push buttons on platform","Alarm + STOP + Druckknöpfe auf Plattform","Alarm + STOP + boutons-pression sur la plateforme","Alarma + STOP + pulsadores en plataforma"]
[{"$f":"CELL(\"address\",'Order form'!Q38)","v":"'[DELTA_Order form_2022.xlsm]Order form'!$Q$38"},"Dropdown","Dual controls with joystick","Handkassette + Joystick auf Plattform","Commande sur fil spiralé + joystick","Controles duales con joystick"]
[{"$f":"CELL(\"address\",'Order form'!Q38)","v":"'[DELTA_Order form_2022.xlsm]Order form'!$Q$38"},"Dropdown","Dual controls with push buttons","Handkassette + Druckknöpfe auf Plattform","Commande sur fil spiralé + boutons-pression","Controles duales con pulsadores"]
[{"$f":"CELL(\"address\",'Order form'!Q39)","v":"'[DELTA_Order form_2022.xlsm]Order form'!$Q$39"},"Dropdown","Remote with membrane keypad (standard)","Außensteuerung mit Folientastatur (Standard)","Clavier à membrane (standard)","Teclado de membrana (estándar)"]
[{"$f":"CELL(\"address\",'Order form'!Q39)","v":"'[DELTA_Order form_2022.xlsm]Order form'!$Q$39"},"Dropdown","Remote with Big push buttons (special)","Außensteuerung mit großen Druckknöpfen (Spezial)","Gros boutons poussoirs (special)","Pulsadores grandes (especiales)"]
[{"$f":"CELL(\"address\",'Order form'!Q40)","v":"'[DELTA_Order form_2022.xlsm]Order form'!$Q$40"},"Dropdown","Without key","Ohne Schlüssel","Sans clé","Sin llave"]
[{"$f":"CELL(\"address\",'Order form'!Q40)","v":"'[DELTA_Order form_2022.xlsm]Order form'!$Q$40"},"Dropdown","Mini key","Mini Schlüssel","Mini clé","Mini llave"]
[{"$f":"CELL(\"address\",'Order form'!Q40)","v":"'[DELTA_Order form_2022.xlsm]Order form'!$Q$40"},"Dropdown","BACO key","BACO Schlüssel","BACO clé","Tecla BACO"]
[{"$f":"CELL(\"address\",'Order form'!Q40)","v":"'[DELTA_Order form_2022.xlsm]Order form'!$Q$40"},"Dropdown","EURO key","EURO Schlüssel","EURO clé","Clave del euro"]
[{"$f":"CELL(\"address\",'Order form'!Q42)","v":"'[DELTA_Order form_2022.xlsm]Order form'!$Q$42"},"Dropdown","Wall mounted (standard)","Wandbefestigung (Standard)","Mural","Montaje en pared (estándar)"]
[{"$f":"CELL(\"address\",'Order form'!Q42)","v":"'[DELTA_Order form_2022.xlsm]Order form'!$Q$42"},"Dropdown","Pillar mounted","Stützenbefestigung","Monté sur poteau","Pilar montado"]
[{"$f":"CELL(\"address\",'Order form'!Q43)","v":"'[DELTA_Order form_2022.xlsm]Order form'!$Q$43"},"Dropdown","No","Nein","Non","No"]
[{"$f":"CELL(\"address\",'Order form'!Q43)","v":"'[DELTA_Order form_2022.xlsm]Order form'!$Q$43"},"Dropdown","Yes","Ja","Oui","Sí"]
[]
[{"$f":"CELL(\"address\",'Order form'!B45)","v":"'[DELTA_Order form_2022.xlsm]Order form'!$B$45"},"Label","Safety features acc. to EN 81-40","Sicherheitsoptionen gemäß EN 81:40","Options de sécurité selon EN 81:40","Funciones de seguridad acc. a la EN 81-40"]
[{"$f":"CELL(\"address\",'Order form'!B46)","v":"'[DELTA_Order form_2022.xlsm]Order form'!$B$46"},"Label","Safety bottom","Kontaktboden","Fond de sécurité","Fondo de seguridad"]
[{"$f":"CELL(\"address\",'Order form'!B47)","v":"'[DELTA_Order form_2022.xlsm]Order form'!$B$47"},"Label","Lateral contact bars","Seitliche Kontaktleisten","Bords sensibles plate-forme","Almohadillas de seguridad laterales"]
[{"$f":"CELL(\"address\",'Order form'!B48)","v":"'[DELTA_Order form_2022.xlsm]Order form'!$B$48"},"Label","Overload signal","Überlastsignal","Contrôle de surcharge","Señal de sobrecarga"]
[{"$f":"CELL(\"address\",'Order form'!B49)","v":"'[DELTA_Order form_2022.xlsm]Order form'!$B$49"},"Label","Visual signal (bespoke solution)","Visuelles Signal","Signal visuel sur la plate-forme","Señal visual (solución a medida)"]
[{"$f":"CELL(\"address\",'Order form'!Q46)","v":"'[DELTA_Order form_2022.xlsm]Order form'!$Q$46"},"Dropdown","Yes","Ja","Oui","Sí"]
[{"$f":"CELL(\"address\",'Order form'!Q46)","v":"'[DELTA_Order form_2022.xlsm]Order form'!$Q$46"},"Dropdown","No","Nein","Non","No"]
[{"$f":"CELL(\"address\",'Order form'!Q47)","v":"'[DELTA_Order form_2022.xlsm]Order form'!$Q$47"},"Dropdown","Yes","Ja","Oui","Sí"]
[{"$f":"CELL(\"address\",'Order form'!Q47)","v":"'[DELTA_Order form_2022.xlsm]Order form'!$Q$47"},"Dropdown","No","Nein","Non","No"]
[{"$f":"CELL(\"address\",'Order form'!Q48)","v":"'[DELTA_Order form_2022.xlsm]Order form'!$Q$48"},"Dropdown","Yes","Ja","Oui","Sí"]
[{"$f":"CELL(\"address\",'Order form'!Q48)","v":"'[DELTA_Order form_2022.xlsm]Order form'!$Q$48"},"Dropdown","No","Nein","Non","No"]
[{"$f":"CELL(\"address\",'Order form'!Q49)","v":"'[DELTA_Order form_2022.xlsm]Order form'!$Q$49"},"Dropdown","Yes","Ja","Oui","Sí"]
[{"$f":"CELL(\"address\",'Order form'!Q49)","v":"'[DELTA_Order form_2022.xlsm]Order form'!$Q$49"},"Dropdown","No","Nein","Non","No"]
[]
[{"$f":"CELL(\"address\",'Order form'!B51)","v":"'[DELTA_Order form_2022.xlsm]Order form'!$B$51"},"Label","Further specifications","Weitere Optionen","Autres options","Especificaciones adicionales"]
[{"$f":"CELL(\"address\",'Order form'!B52)","v":"'[DELTA_Order form_2022.xlsm]Order form'!$B$52"},"Label","Protective cover for outdoor platform","Plastikabdeckung für Außenanlage","Housse plastique pour unité extérieur","Cubierta de plástico para elevador al aire libre"]
[{"$f":"CELL(\"address\",'Order form'!B53)","v":"'[DELTA_Order form_2022.xlsm]Order form'!$B$53"},"Label","Padlock against unfolding of manual platform","Schloss für manuelle Plattform","Verrouillage de plate-forme","Candado contra el despliegue de la plataforma"]
[{"$f":"CELL(\"address\",'Order form'!B54)","v":"'[DELTA_Order form_2022.xlsm]Order form'!$B$54"},"Label","Rail fillings","Verkleidung zwischen den Stützen","-","Rellenos de carril"]
[{"$f":"CELL(\"address\",'Order form'!B55)","v":"'[DELTA_Order form_2022.xlsm]Order form'!$B$55"},"Label","Warranty","Warranty time","Temps de garantie","Garantía"]
[{"$f":"CELL(\"address\",'Order form'!B56)","v":"'[DELTA_Order form_2022.xlsm]Order form'!$B$56"},"Label","Stainless steel label","Stainless steel label","Étiquette en acier inoxydable","Etiqueta de acero inoxidable"]
[{"$f":"CELL(\"address\",'Order form'!B60)","v":"'[DELTA_Order form_2022.xlsm]Order form'!$B$60"},"Label","Transport box","Transportkiste","Boîte de transport","Caja de transporte"]
[{"$f":"CELL(\"address\",'Order form'!B63)","v":"'[DELTA_Order form_2022.xlsm]Order form'!$B$63"},"Label","Colour of battery charger (Weigl option)","RAL Farbe des Ladegerätgehäuses"]
[{"$f":"CELL(\"address\",'Order form'!B64)","v":"'[DELTA_Order form_2022.xlsm]Order form'!$B$64"},"Label","Eccentric platform","Exzentrische Plattform"]
[{"$f":"CELL(\"address\",'Order form'!Q52)","v":"'[DELTA_Order form_2022.xlsm]Order form'!$Q$52"},"Dropdown","Yes (for outdoor)","Ja (für Außenanlage)","Oui","Sí (para exteriores)"]
[{"$f":"CELL(\"address\",'Order form'!Q52)","v":"'[DELTA_Order form_2022.xlsm]Order form'!$Q$52"},"Dropdown","No","Nein","Non","No"]
[{"$f":"CELL(\"address\",'Order form'!Q53)","v":"'[DELTA_Order form_2022.xlsm]Order form'!$Q$53"},"Dropdown","Yes","Ja","Oui","Sí"]
[{"$f":"CELL(\"address\",'Order form'!Q53)","v":"'[DELTA_Order form_2022.xlsm]Order form'!$Q$53"},"Dropdown","No (standard)","Nein (Standard)","Non (Standard)","No (estándar)"]
[{"$f":"CELL(\"address\",'Order form'!Q54)","v":"'[DELTA_Order form_2022.xlsm]Order form'!$Q$54"},"Dropdown","None","None","None","Ninguna"]
[{"$f":"CELL(\"address\",'Order form'!Q54)","v":"'[DELTA_Order form_2022.xlsm]Order form'!$Q$54"},"Dropdown","Connex glass","Connex glass","Connex glass","Vidrio Connex"]
[{"$f":"CELL(\"address\",'Order form'!Q54)","v":"'[DELTA_Order form_2022.xlsm]Order form'!$Q$54"},"Dropdown","Perforated metal plates","Perforated metal plates","Perforated metal plates","Placas de metal perforadas"]
[{"$f":"CELL(\"address\",'Order form'!Q54)","v":"'[DELTA_Order form_2022.xlsm]Order form'!$Q$54"},"Dropdown","Wooden","Wooden","Wooden","De madera"]
[{"$f":"CELL(\"address\",'Order form'!Q54)","v":"'[DELTA_Order form_2022.xlsm]Order form'!$Q$54"},"Dropdown","Steel rods","Steel rods","Steel rods","Varillas de acero"]
[{"$f":"CELL(\"address\",'Order form'!Q54)","v":"'[DELTA_Order form_2022.xlsm]Order form'!$Q$54"},"Dropdown","Stainless steel rods","Stainless steel rods","Stainless steel rods","Varillas de acero inoxidable"]
[{"$f":"CELL(\"address\",'Order form'!Q56)","v":"'[DELTA_Order form_2022.xlsm]Order form'!$Q$56"},"Dropdown","None","None","None","Ninguna"]
[{"$f":"CELL(\"address\",'Order form'!Q56)","v":"'[DELTA_Order form_2022.xlsm]Order form'!$Q$56"},"Dropdown","ALTECH","ALTECH","ALTECH","ALTECH"]
[{"$f":"CELL(\"address\",'Order form'!Q56)","v":"'[DELTA_Order form_2022.xlsm]Order form'!$Q$56"},"Dropdown","ARES","ARES","ARES","Ares"]
[{"$f":"CELL(\"address\",'Order form'!Q56)","v":"'[DELTA_Order form_2022.xlsm]Order form'!$Q$56"},"Dropdown","LEHNER","LEHNER","LEHNER","LEHNER"]
[{"$f":"CELL(\"address\",'Order form'!Q56)","v":"'[DELTA_Order form_2022.xlsm]Order form'!$Q$56"},"Dropdown","WEIGL","WEIGL","WEIGL","WEIGL"]
[{"$f":"CELL(\"address\",'Order form'!Q56)","v":"'[DELTA_Order form_2022.xlsm]Order form'!$Q$56"},"Dropdown","OTIS","OTIS","OTIS","OTIS"]
[{"$f":"CELL(\"address\",'Order form'!Q56)","v":"'[DELTA_Order form_2022.xlsm]Order form'!$Q$56"},"Dropdown","STANNAH","STANNAH","STANNAH","STANNAH"]
[{"$f":"CELL(\"address\",'Order form'!Q56)","v":"'[DELTA_Order form_2022.xlsm]Order form'!$Q$56"},"Dropdown","TERRY","TERRY","TERRY","TERRY"]
[{"$f":"CELL(\"address\",'Order form'!Q60)","v":"'[DELTA_Order form_2022.xlsm]Order form'!$Q$60"},"Dropdown","None","-","None","Ninguna"]
[{"$f":"CELL(\"address\",'Order form'!Q60)","v":"'[DELTA_Order form_2022.xlsm]Order form'!$Q$60"},"Dropdown","Q1 - Wooden box length up to 3m","Q1 - Holzkiste mit bis zu 3m Länge","Q1 - boîte en bois d'une longueur maximale de 3m","Q1 - caja de madera con una longitud de hasta 3m"]
[{"$f":"CELL(\"address\",'Order form'!Q60)","v":"'[DELTA_Order form_2022.xlsm]Order form'!$Q$60"},"Dropdown","Q1 - Cardboard box length up to 2.35m","Q1 - Kartonkiste mit Länge 2.35m","Q1 - boîte en carton d'une longueur maximale de 2.35m","Q1 - caja de cartón con una longitud de 2.35m"]
[{"$f":"CELL(\"address\",'Order form'!Q60)","v":"'[DELTA_Order form_2022.xlsm]Order form'!$Q$60"},"Dropdown","Q3 - Fumigated wooden box for airfreight length 2.35m","Q3 - Behandelte Transportkiste für Luftfracht mit 2.35m Länge","Q3 - fret aérien  - caisse en bois traité de 2.35m de long","Q3 - carga aérea - caja de madera tratada de 2.35m de longitud"]
[{"$f":"CELL(\"address\",'Order form'!Q60)","v":"'[DELTA_Order form_2022.xlsm]Order form'!$Q$60"},"Dropdown","Q3 - Fumigated wooden box for seafreight length up to 2.35m","Q3 - Behandelte Transportkiste für Seefracht mit 2.35m Länge","Q3 - fret non aérien - caisse en bois traité de 2.35m de long","Q3 - carga no aérea - caja de madera tratada de 2.35m de longitud"]
[{"$f":"CELL(\"address\",'Order form'!Q64)","v":"'[DELTA_Order form_2022.xlsm]Order form'!$Q$64"},"Dropdown","No","Nein"]
[{"$f":"CELL(\"address\",'Order form'!Q64)","v":"'[DELTA_Order form_2022.xlsm]Order form'!$Q$64"},"Dropdown","Yes","Ja"]
[]
[]
[]
[{"$f":"CELL(\"address\",'Order form'!B66)","v":"'[DELTA_Order form_2022.xlsm]Order form'!$B$66"},"Label","Surface treatment","Oberflächenbehandlung","Traitement de surface","Tratamiento de superficies"]
[{"$f":"CELL(\"address\",'Order form'!B67)","v":"'[DELTA_Order form_2022.xlsm]Order form'!$B$67"},"Label","Platform and carriage","Plattform und Fahrwagen","Plate-forme et chariot","Plataforma y carro"]
[{"$f":"CELL(\"address\",'Order form'!B68)","v":"'[DELTA_Order form_2022.xlsm]Order form'!$B$68"},"Label","Rail","Schiene","Rail","Guía"]
[{"$f":"CELL(\"address\",'Order form'!B69)","v":"'[DELTA_Order form_2022.xlsm]Order form'!$B$69"},"Label","Brackets and distances","Bügeln und Distanzen","Fixations","Soportes y distancias"]
[{"$f":"CELL(\"address\",'Order form'!B70)","v":"'[DELTA_Order form_2022.xlsm]Order form'!$B$70"},"Label","Pillars","Stützen","Supports","Pilares"]
[]
[]
[]
[{"$f":"CELL(\"address\",'Order form'!Q67)","v":"'[DELTA_Order form_2022.xlsm]Order form'!$Q$67"},"Dropdown","RAL 7035 (standard)","RAL 7035 (Standard)","RAL 7035 (standard)","RAL 7035 (estándar)"]
[{"$f":"CELL(\"address\",'Order form'!Q67)","v":"'[DELTA_Order form_2022.xlsm]Order form'!$Q$67"},"Dropdown","RAL 9007 (standard)","RAL 9007 (Standard)","RAL 9007 (standard)","RAL 9007 (estándar)"]
[{"$f":"CELL(\"address\",'Order form'!Q67)","v":"'[DELTA_Order form_2022.xlsm]Order form'!$Q$67"},"Dropdown","Special RAL","Spezial RAL","Special RAL","Special RAL"]
[{"$f":"CELL(\"address\",'Order form'!Q67)","v":"'[DELTA_Order form_2022.xlsm]Order form'!$Q$67"},"Dropdown","Zinc + RAL 7035 (outdoor standard)","Verzinkt + RAL 7035 (Außenanlage Standard)","Galvanisé + RAL 7035 (extérieure)","Zinc + RAL 7035 (estándar para exteriores)"]
[{"$f":"CELL(\"address\",'Order form'!Q67)","v":"'[DELTA_Order form_2022.xlsm]Order form'!$Q$67"},"Dropdown","Zinc + RAL 9007 (outdoor standard)","Verzinkt + RAL 9007 (Außenanlage Standard)","Galvanisé + RAL 9007 (extérieure)","Zinc + RAL 9007 (estándar para exteriores)"]
[{"$f":"CELL(\"address\",'Order form'!Q67)","v":"'[DELTA_Order form_2022.xlsm]Order form'!$Q$67"},"Dropdown","Zinc + Special RAL (outdoor special)","Verzinkt + Spezial RAL (Außenanlage spezial)","Galvanisé + Special RAL (extérieure special)","Zinc + Special RAL (especial para exteriores)"]
[{"$f":"CELL(\"address\",'Order form'!Q67)","v":"'[DELTA_Order form_2022.xlsm]Order form'!$Q$67"},"Dropdown","Stainless 304 + Special RAL","Edelstahl 304 + Spezial RAL","Acier inoxydable 304 + Special RAL","Inoxidable 304 + Special RAL"]
[{"$f":"CELL(\"address\",'Order form'!Q67)","v":"'[DELTA_Order form_2022.xlsm]Order form'!$Q$67"},"Dropdown","Stainless 316 + Special RAL  (Special)","Edelstahl 316 + Spezial RAL (Spezial)","Acier inoxydable 316 + Special RAL (Special)","Inoxidable 316 + Special RAL (Special)"]
[{"$f":"CELL(\"address\",'Order form'!Q68)","v":"'[DELTA_Order form_2022.xlsm]Order form'!$Q$68"},"Dropdown","Aluminium (Standard indoor or outdoor)","Aluminium (Innen oder Außen)","Aluminium (intérieure et extérieure)","Aluminio (interior o exterior)"]
[{"$f":"CELL(\"address\",'Order form'!Q68)","v":"'[DELTA_Order form_2022.xlsm]Order form'!$Q$68"},"Dropdown","RAL 7035 (standard)","RAL 7035 (Standard)","RAL 7035 (standard)","RAL 7035 (estándar)"]
[{"$f":"CELL(\"address\",'Order form'!Q68)","v":"'[DELTA_Order form_2022.xlsm]Order form'!$Q$68"},"Dropdown","RAL 9007 (standard)","RAL 9007 (Standard)","RAL 9007 (standard)","RAL 9007 (estándar)"]
[{"$f":"CELL(\"address\",'Order form'!Q68)","v":"'[DELTA_Order form_2022.xlsm]Order form'!$Q$68"},"Dropdown","Special RAL ","Spezial RAL ","Special RAL","Special RAL"]
[{"$f":"CELL(\"address\",'Order form'!Q68)","v":"'[DELTA_Order form_2022.xlsm]Order form'!$Q$68"},"Dropdown","Stainless 304","Edelstahl 304","Acier inoxydable 304","Inoxidable 304"]
[{"$f":"CELL(\"address\",'Order form'!Q68)","v":"'[DELTA_Order form_2022.xlsm]Order form'!$Q$68"},"Dropdown","Stainless 316 ","Edelstahl 316 ","Acier inoxydable 316","Inoxidable 316"]
[{"$f":"CELL(\"address\",'Order form'!Q69)","v":"'[DELTA_Order form_2022.xlsm]Order form'!$Q$69"},"Dropdown","RAL 7035 (standard)","RAL 7035 (Standard)","RAL 7035 (standard)","RAL 7035 (estándar)"]
[{"$f":"CELL(\"address\",'Order form'!Q69)","v":"'[DELTA_Order form_2022.xlsm]Order form'!$Q$69"},"Dropdown","RAL 9007 (standard)","RAL 9007 (Standard)","RAL 9007 (standard)","RAL 9007 (estándar)"]
[{"$f":"CELL(\"address\",'Order form'!Q69)","v":"'[DELTA_Order form_2022.xlsm]Order form'!$Q$69"},"Dropdown","Special RAL","Spezial RAL","Special RAL","Special RAL"]
[{"$f":"CELL(\"address\",'Order form'!Q69)","v":"'[DELTA_Order form_2022.xlsm]Order form'!$Q$69"},"Dropdown","Zinc + RAL 7035 (outdoor standard)","Verzinkt + RAL 7035 (Außenanlage standard)","Galvanisé + RAL 7035 (extérieure standard)","Zinc + RAL 7035 (estándar para exteriores)"]
[{"$f":"CELL(\"address\",'Order form'!Q69)","v":"'[DELTA_Order form_2022.xlsm]Order form'!$Q$69"},"Dropdown","Zinc + RAL 9007 (outdoor standard)","Verzinkt + RAL 9007 (Außenanlage standard)","Galvanisé + RAL 9007 (extérieure standard)","Zinc + RAL 9007 (estándar para exteriores)"]
[{"$f":"CELL(\"address\",'Order form'!Q69)","v":"'[DELTA_Order form_2022.xlsm]Order form'!$Q$69"},"Dropdown","Zinc + Special RAL (outdoor special)","Verzinkt + Spezial RAL (Außenanlage spezial)","Galvanisé + Special RAL (extérieure special)","Zinc + Special RAL (especial para exteriores)"]
[{"$f":"CELL(\"address\",'Order form'!Q69)","v":"'[DELTA_Order form_2022.xlsm]Order form'!$Q$69"},"Dropdown","Zinc","Verzinkt","Galvanisé","Zinc"]
[{"$f":"CELL(\"address\",'Order form'!Q69)","v":"'[DELTA_Order form_2022.xlsm]Order form'!$Q$69"},"Dropdown","Stainless 304","Edelstahl 304","Acier inoxydable 304","Inoxidable 304"]
[{"$f":"CELL(\"address\",'Order form'!Q69)","v":"'[DELTA_Order form_2022.xlsm]Order form'!$Q$69"},"Dropdown","Stainless 316 (Special)","Edelstahl 316 (Spezial)","Acier inoxydable 316 (Special)","Inoxidable 316 (Special)"]
[{"$f":"CELL(\"address\",'Order form'!Q70)","v":"'[DELTA_Order form_2022.xlsm]Order form'!$Q$70"},"Dropdown","-","-","-","-"]
[{"$f":"CELL(\"address\",'Order form'!Q70)","v":"'[DELTA_Order form_2022.xlsm]Order form'!$Q$70"},"Dropdown","RAL 7035 (standard)","RAL 7035 (Standard)","RAL 7035 (standard)","RAL 7035 (estándar)"]
[{"$f":"CELL(\"address\",'Order form'!Q70)","v":"'[DELTA_Order form_2022.xlsm]Order form'!$Q$70"},"Dropdown","RAL 9007 (standard)","RAL 9007 (Standard)","RAL 9007 (standard)","RAL 9007 (estándar)"]
[{"$f":"CELL(\"address\",'Order form'!Q70)","v":"'[DELTA_Order form_2022.xlsm]Order form'!$Q$70"},"Dropdown","Special RAL","Spezial RAL","Special RAL","Special RAL"]
[{"$f":"CELL(\"address\",'Order form'!Q70)","v":"'[DELTA_Order form_2022.xlsm]Order form'!$Q$70"},"Dropdown","Zinc + RAL 7035 (outdoor standard)","Verzinkt + RAL 7035 (Außenanlage standard)","Galvanisé + RAL 7035 (extérieure standard)","Zinc + RAL 7035 (estándar para exteriores)"]
[{"$f":"CELL(\"address\",'Order form'!Q70)","v":"'[DELTA_Order form_2022.xlsm]Order form'!$Q$70"},"Dropdown","Zinc + RAL 9007 (outdoor standard)","Verzinkt + RAL 9007 (Außenanlage standard)","Galvanisé + RAL 9007 (extérieure standard)","Zinc + RAL 9007 (estándar para exteriores)"]
[{"$f":"CELL(\"address\",'Order form'!Q70)","v":"'[DELTA_Order form_2022.xlsm]Order form'!$Q$70"},"Dropdown","Zinc + Special RAL (outdoor special)","Verzinkt + Spezial RAL (Außenanlage spezial)","Galvanisé + Special RAL (extérieure special)","Zinc + Special RAL (especial para exteriores)"]
[{"$f":"CELL(\"address\",'Order form'!Q70)","v":"'[DELTA_Order form_2022.xlsm]Order form'!$Q$70"},"Dropdown","Zinc","Verzinkt","Galvanisé","Zinc"]
[{"$f":"CELL(\"address\",'Order form'!Q70)","v":"'[DELTA_Order form_2022.xlsm]Order form'!$Q$70"},"Dropdown","Stainless 304","Edelstahl 304","Acier inoxydable 304","Inoxidable 304"]
[{"$f":"CELL(\"address\",'Order form'!Q70)","v":"'[DELTA_Order form_2022.xlsm]Order form'!$Q$70"},"Dropdown","Stainless 316 (Special)","Edelstahl 316 (Spezial)","Acier inoxydable 316 (Special)","Inoxidable 316 (Special)"]
[{"$f":"CELL(\"address\",'Order form'!B72)","v":"'[DELTA_Order form_2022.xlsm]Order form'!$B$72"},"Label","Supporting structure","Art der Befestigung","Structure de support","Estructura de soporte"]
[{"$f":"CELL(\"address\",'Order form'!B73)","v":"'[DELTA_Order form_2022.xlsm]Order form'!$B$73"},"Label","Fixing of the rails","Fixierung der Schiene","Fixation des rails","Fijación de la guía"]
[{"$f":"CELL(\"address\",'Order form'!B74)","v":"'[DELTA_Order form_2022.xlsm]Order form'!$B$74"},"Label","Arrangement of pillars","Stützenanordnung","Emplacement des supports","Arreglo de pilares"]
[{"$f":"CELL(\"address\",'Order form'!B75)","v":"'[DELTA_Order form_2022.xlsm]Order form'!$B$75"},"Label","Vertical adjustment slots on pillars","Vertikale Einstellschlitze an den Stützen","Fentes verticales de réglage sur les supports","Ranuras de ajuste en los pilares"]
[{"$f":"CELL(\"address\",'Order form'!B76)","v":"'[DELTA_Order form_2022.xlsm]Order form'!$B$76"},"Label","Pillar base","Pillar base","Pillar base","Base del pilar"]
[{"$f":"CELL(\"address\",'Order form'!B80)","v":"'[DELTA_Order form_2022.xlsm]Order form'!$B$80"},"Label","Bigger pipe thickness ø40x4mm","Stärkeres oberes Rohr ø40x4mm"]
[{"$f":"CELL(\"address\",'Order form'!B81)","v":"'[DELTA_Order form_2022.xlsm]Order form'!$B$81"},"Label","Bigger pillar profile 60x60x6mm","Stärkers Profil für Stützen 60x60x6mm"]
[{"$f":"CELL(\"address\",'Order form'!B82)","v":"'[DELTA_Order form_2022.xlsm]Order form'!$B$82"},"Label","Preassembled rail","Preassembled rail","Preassembled rail","Preassembled rail"]
[{"$f":"CELL(\"address\",'Order form'!Q73)","v":"'[DELTA_Order form_2022.xlsm]Order form'!$Q$73"},"Dropdown","on the wall only","An die Wand","Directement au mur","Solo en la pared"]
[{"$f":"CELL(\"address\",'Order form'!Q73)","v":"'[DELTA_Order form_2022.xlsm]Order form'!$Q$73"},"Dropdown","on the wall + pillars","Auf Stützen und Wand","Sur supports et mur","En la pared + pilares"]
[{"$f":"CELL(\"address\",'Order form'!Q73)","v":"'[DELTA_Order form_2022.xlsm]Order form'!$Q$73"},"Dropdown","on the pillars only","Auf Stützen","Sur supports","Solo en los pilares"]
[{"$f":"CELL(\"address\",'Order form'!Q74)","v":"'[DELTA_Order form_2022.xlsm]Order form'!$Q$74"},"Dropdown","-","-","-","-"]
[{"$f":"CELL(\"address\",'Order form'!Q74)","v":"'[DELTA_Order form_2022.xlsm]Order form'!$Q$74"},"Dropdown","on the steps (standard)","Auf den Stufen","Sue les marches","En los escalones (estándar)"]
[{"$f":"CELL(\"address\",'Order form'!Q74)","v":"'[DELTA_Order form_2022.xlsm]Order form'!$Q$74"},"Dropdown","on the string of the staircase","An die Treppenwange","Contre le limon de l'escalier","En la cuerda de la escalera"]
[{"$f":"CELL(\"address\",'Order form'!Q74)","v":"'[DELTA_Order form_2022.xlsm]Order form'!$Q$74"},"Dropdown","along the string of the staircase and down to the ground floor","Entlang der Treppenwange auf den Boden","Contre le limon et posés sur le sol dans le vide de l'escalier","A lo largo de la cuerda de la escalera y hasta la planta baja"]
[{"$f":"CELL(\"address\",'Order form'!Q75)","v":"'[DELTA_Order form_2022.xlsm]Order form'!$Q$75"},"Dropdown","-","-","-","-"]
[{"$f":"CELL(\"address\",'Order form'!Q75)","v":"'[DELTA_Order form_2022.xlsm]Order form'!$Q$75"},"Dropdown","Yes","Ja","Oui","Sí"]
[{"$f":"CELL(\"address\",'Order form'!Q75)","v":"'[DELTA_Order form_2022.xlsm]Order form'!$Q$75"},"Dropdown","No","Nein","Non","No"]
[{"$f":"CELL(\"address\",'Order form'!Q76)","v":"'[DELTA_Order form_2022.xlsm]Order form'!$Q$76"},"Dropdown","not specified","nicht spezifiziert","not specified","no especificado"]
[{"$f":"CELL(\"address\",'Order form'!Q76)","v":"'[DELTA_Order form_2022.xlsm]Order form'!$Q$76"},"Dropdown","triangle","Dreieck","triangle","triángulo"]
[{"$f":"CELL(\"address\",'Order form'!Q76)","v":"'[DELTA_Order form_2022.xlsm]Order form'!$Q$76"},"Dropdown","diamond","Diamant","diamond","diamante"]
[{"$f":"CELL(\"address\",'Order form'!Q76)","v":"'[DELTA_Order form_2022.xlsm]Order form'!$Q$76"},"Dropdown","long diamond","Langer Diamant","long diamond","diamante largo"]
[{"$f":"CELL(\"address\",'Order form'!Q80)","v":"'[DELTA_Order form_2022.xlsm]Order form'!$Q$80"},"Dropdown","No","Nein"]
[{"$f":"CELL(\"address\",'Order form'!Q80)","v":"'[DELTA_Order form_2022.xlsm]Order form'!$Q$80"},"Dropdown","Yes","Ja"]
[{"$f":"CELL(\"address\",'Order form'!Q81)","v":"'[DELTA_Order form_2022.xlsm]Order form'!$Q$81"},"Dropdown","No","Nein"]
[{"$f":"CELL(\"address\",'Order form'!Q81)","v":"'[DELTA_Order form_2022.xlsm]Order form'!$Q$81"},"Dropdown","Yes","Ja"]
[{"$f":"CELL(\"address\",'Order form'!Q82)","v":"'[DELTA_Order form_2022.xlsm]Order form'!$Q$82"},"Dropdown","Yes","Ja","Oui","Sí"]
[{"$f":"CELL(\"address\",'Order form'!Q82)","v":"'[DELTA_Order form_2022.xlsm]Order form'!$Q$82"},"Dropdown","No","Nein","Non","No"]
[{"$f":"CELL(\"address\",'Order form'!B84)","v":"'[DELTA_Order form_2022.xlsm]Order form'!$B$84"},"Label","Additional information","Zusätzliche Information","Information additionnelle","Información Adicional"]
[{"$f":"CELL(\"address\",'Order form'!B93)","v":"'[DELTA_Order form_2022.xlsm]Order form'!$B$93"},"Label","Delivery date","Lieferdatum","Date de livraison","Fecha de entrega"]
[{"$f":"CELL(\"address\",'Order form'!V93)","v":"'[DELTA_Order form_2022.xlsm]Order form'!$V$93"},"Label","Prepared by","Bearbeitet von","Preparé par","Preparado por"]
[{"$f":"CELL(\"address\",'Order form'!H93)","v":"'[DELTA_Order form_2022.xlsm]Order form'!$H$93"},"Label","Week","Woche","Semaine","Semana"]
[{"$f":"CELL(\"address\",'Order form'!AM67)","v":"'[DELTA_Order form_2022.xlsm]Order form'!$AM$67"},"Formula","=IF(Q22=\"outdoor\",\"Please remember to choose surface treatment for outdoor\", \"\")","=IF(Q22=\"Im Außenbereich\",\"Bitte denken Sie daran, die Oberflächenbehandlung für den Außenbereich zu wählen.\", \"\")","=IF(Q22=\"De plein air\",\"N'oubliez pas de choisir le traitement de surface pour l'extérieur\", \"\")","=IF(Q22=\"Al aire libre\",\"Por favor, recuerde elegir el tratamiento de superficie para exteriores\", \"\")"]
[{"$f":"CELL(\"address\",'Order form'!AM68)","v":"'[DELTA_Order form_2022.xlsm]Order form'!$AM$68"},"Formula","=IF(Q22=\"outdoor\",\"Please remember to choose surface treatment for outdoor\", \"\")","=IF(Q22=\"Im Außenbereich\",\"Bitte denken Sie daran, die Oberflächenbehandlung für den Außenbereich zu wählen.\", \"\")","=IF(Q22=\"De plein air\",\"N'oubliez pas de choisir le traitement de surface pour l'extérieur\", \"\")","=IF(Q22=\"Al aire libre\",\"Por favor, recuerde elegir el tratamiento de superficie para exteriores\", \"\")"]
[{"$f":"CELL(\"address\",'Order form'!AM69)","v":"'[DELTA_Order form_2022.xlsm]Order form'!$AM$69"},"Formula","=IF(Q22=\"outdoor\",\"Please remember to choose surface treatment for outdoor\", \"\")","=IF(Q22=\"Im Außenbereich\",\"Bitte denken Sie daran, die Oberflächenbehandlung für den Außenbereich zu wählen.\", \"\")","=IF(Q22=\"De plein air\",\"N'oubliez pas de choisir le traitement de surface pour l'extérieur\", \"\")","=IF(Q22=\"Al aire libre\",\"Por favor, recuerde elegir el tratamiento de superficie para exteriores\", \"\")"]
[{"$f":"CELL(\"address\",'Order form'!AM70)","v":"'[DELTA_Order form_2022.xlsm]Order form'!$AM$70"},"Formula","=IF(Q22=\"outdoor\",\"Please remember to choose surface treatment for outdoor\", \"\")","=IF(Q22=\"Im Außenbereich\",\"Bitte denken Sie daran, die Oberflächenbehandlung für den Außenbereich zu wählen.\", \"\")","=IF(Q22=\"De plein air\",\"N'oubliez pas de choisir le traitement de surface pour l'extérieur\", \"\")","=IF(Q22=\"Al aire libre\",\"Por favor, recuerde elegir el tratamiento de superficie para exteriores\", \"\")"]
[{"$f":"CELL(\"address\",'Order form'!AM33)","v":"'[DELTA_Order form_2022.xlsm]Order form'!$AM$33"},"Formula","=IF(Q33=\"Upper and front ramp (without lower)\",\"Special option - please consult Lehner before order\", \"\")","=IF(Q33=\"Obere und frontale Rampe (ohne untere)\",\"Spezialoption - bitte mit Lehner besprechen vor Bestellung\", \"\")","=IF(Q33=\"Rampe supérieure et frontale (sans la rampe intérieure)\",\"Option spéciale - veuillez consulter Lehner avant de commander\", \"\")","=IF(Q33=\"Rampa superior y frontal (sin inferior)\",\"Opción especial - por favor consulte a Lehner antes de hacer el pedido\", \"\")"]

{"sheet":"LangBackup","index":3,"n_rows":164,"n_cols":5,"rows_kept":164,"cut":false,"hidden":true,"merged":[]}
["Cell","Type","English","Deutsch","French"]
["Q3","Label","ALPHA stairlift","Alpha Treppenlift"]
["Q4","Label","Order form","Bestellformular","Bon de commande"]
["D3","Label","Dimension No.","Abmessung Nr.","Numéro de dimension"]
["D5","Label","Language","Sprache","La langue"]
["AD3","Label","Date:","Datum:","l' date"]
["AD4","Label","Version:","Version:","Version"]
["P6","Label","Distributor: (always fill out)","Händler: (immer ausfüllen)","Distributeur: (remplissez toujours)"]
["AB6","Label","Delivery address: (always fill out)","Lieferadresse: (immer ausfüllen)","Adresse de livraison: (remplissez toujours)"]
["P7","Label","Company:","Firma:","Enterprise"]
["B7","Label","Company:","Firma:","Enterprise"]
["P9","Label","Address","Anschrift","Une robe"]
["AB9","Label","Address","Anschrift","Une robe"]
["P10","Label","Postcode","Postleitzahl","Code postal"]
["AB10","Label","Postcode","Postleitzahl","Code postal"]
["P11","Label","City","Stadt","Ville"]
["AB11","Label","City","Stadt","Ville"]
["P12","Label","Country","Land","le pays"]
["AB12","Label","Country","Land","le pays"]
["D23","Label","Installation location","Installationsort"]
["D24","Label","Installation side","Montageseite","Côté d'installation"]
["C17","Label","Pick up address for lifts: Spedition Englmayer, Wiesenstrasse 71, 4600 Wels, Austria","ABHOLADRESSE: Spedition Englmayer, Wiesenstrasse 71, 4600 Wels, Austria"]
["C19","Label","Production No.","Produktionsnummer"]
["I19","Label","Order reference name (or number)","Auftragsreferenz (Name oder Nummer)"]
["C22","Label","Rail specification","Schienenspezifikation"]
["D25","Label","Rail length in meters rounded","Schienenlänge (ungefähr in m)","Longueur du rail en mètres arrondis"]
["D26","Label","Lower stop","Untere Haltestelle","Arrêt inférieur"]
["D27","Label","Upper stop","Obere Haltestelle","Arrêt supérieur"]
["D28","Label","Number of 90° curves","Anzahl der 90° Kurven","Nombre de courbes à 90°"]
["D28","Label","Number of 180° curves","Anzahl der 180° Kurven","Nombre de courbes à 180°"]
["D30","Label","Number of special curves","Anzahl der Spezialkurven","Nombre de courbes spéciales"]
["D31","Label","Number of negative curves","Anzahl der Negativkurven"]
["D32","Label","Number of vertical bends","Number of vertical bends"]
["D33","Label","Number of intermediate stops","Anzahl der Zwischenhaltestellen"]
["D34","Label","Rail surface treatment","Schienenfarbe"]
["AD26","Formula","=IF(R26=\"straight start with bottom overrun\",\"mm from first step to end of chair\", \"\")","=IF(R26=\"Gerade mit horizontalem Auslauf\",\"mm von erster Stufe bis Ende Sitz\", \"\")"]
["AD27","Formula","=IF(R27=\"straight top overrun\",\"mm from last step to end of chair\", \"\")","=IF(R27=\"Gerader Überlauf\",\"mm von letzter Stufe bis Ende Sitz\", \"\")"]
["R23","Dropdown","Indoor","Innen"]
["R23","Dropdown","Outdoor","Im Außenbereich"]
["R24","Dropdown","Left","Links","La gauche"]
["R24","Dropdown","Right","Rechts","Droite"]
["R26","Dropdown","Straight","Gerade","Tout droit"]
["R26","Dropdown","Straight with steep start","Gerade mit Steilstart","Droit avec début raide"]
["R26","Dropdown","Straight start with bottom overrun","Gerade mit horizontalem Auslauf","Début droit avec dépassement du bas"]
["R26","Dropdown","90°","90°","90°"]
["R26","Dropdown","180°","180°","180°"]
["R26","Dropdown","Special curve","Spezialkurve","Courbe spéciale"]
["R27","Dropdown","Straight at last step","Gerade an letzter Stufe","Droit à la dernière étape"]
["R27","Dropdown","Straight top overrun","Gerader Überlauf","Débordement droit"]
["R27","Dropdown","90° on top landing","90° auf oberem Podest","Atterrissage supérieur à 90°"]
["R27","Dropdown","180° on top landing","180° auf oberem Podest","Atterrissage supérieur à 180°"]
["R27","Dropdown","Special curve on top landing","Spezialkurve auf oberem Podest","Courbe spéciale sur le palier supérieur"]
["R34","Dropdown","RAL 7035 (standard)","RAL 7035 (Standard)"]
["R34","Dropdown","special RAL","Spezial RAL"]
["R34","Dropdown","zinc + RAL 7035","Verzinkt + RAL 7035"]
["R34","Dropdown","zinc + special RAL","Verzinkt + spezial RAL"]
["C36","Label","Design specifications","Sitz Design Optionen","Les spécifications de conception"]
["D37","Label","Execution","Ausführung","Exécution"]
["D38","Label","Seat design type","Sitz Design Typ","Type de conception du siège"]
["D39","Label","Upholstery","Sitzfarbe","Tapisserie"]
["D40","Label","Automatic footrest folding","Automatisches Fußbrett","Repose-pied automatique"]
["D41","Label","Automatic seat swivel","Automatischer Drehsitz","Siège pivotant automatique"]
["D42","Label","Bigger armrest distance (+100mm)","Größere Distanz zwischen Armlehnen ","Plus grande distance d'accoudoir (+ 100mm)"]
["D43","Label","Joystick position side","Joystickposition","Position du joystick"]
["D44","Label","External landing controls (always radio)","Externe Landekontrollen (immer Radio)","Contrôles d'atterrissage externes (toujours radio)"]
["D45","Label","Type of key","Art des Schlüssels","Type de clé"]
["D46","Label","Total no. of external landing controls","Anzahl Fernbedienungen gesamt","Nombre total de contrôles d'atterrissage externes"]
["D47","Label","Postion of external controls","Stellung externer Kontrollen","Position des contrôles externes"]
["R37","Dropdown","Stairlift + rail (standard)","Kompletter Lift "]
["R37","Dropdown","Rail only","Nur Schiene"]
["AS39","Label","Blue","Blau","Bleu"]
["AS40","Label","Red","rot","rouge"]
["AS41","Label","Brown","Braun","marron"]
["AS42","Label","Green","Grün","vert"]
["AS43","Label","Beige","Beige","Beige"]
["AS44","Label","Light gray","Hellgrau","Gris clair"]
["AT39","Label","Marine blue","Marineblau","Bleu marine"]
["AT40","Label","Emerald green","Smaragdgrün","vert émeraude"]
["AT41","Label","Ruby red","Rubinrot","rouge rubis"]
["AT42","Label","Pearl white","Perlweiss","Perle blanche"]
["AT43","Label","Walnut brown","Walnussbraun","Marron"]
["AT44","Label","Safran yellow","Safran-Gelb","Jaune safran"]
["AU39","Label","Marine blue","Marineblau","Bleu marine"]
["AU40","Label","Emerald green","Smaragdgrün","vert émeraude"]
["AU41","Label","Ruby red","Rubinrot","rouge rubis"]
["AU42","Label","Pearl white","Perlweiss","Perle blanche"]
["AU43","Label","Walnut brown","Walnussbraun","Marron"]
["AU44","Label","Safran yellow","Safran-Gelb","Jaune safran"]
["AV39","Label","Olive (woven textile)","Olive (gewebtes Textil)","Olive (textile tissé)"]
["AV40","Label","Granite (woven textile)","Granit (gewebtes Textil)","Granite (textile tissé)"]
["AV41","Label","Bordeaux (woven textile)","Bordeaux (gewebtes Textil)","Bordeaux (textile tissé)"]
["AV42","Label","Marble (woven textile)","Marmor (gewebtes Textil)","Marbre (textile tissé)"]
["AV43","Label","Ivory (woven textile)","Elfenbein (gewebtes Textil)","Ivoire (textile tissé)"]
["AV44","Label","Basalt (artificial leather)","Basalt (Kunstleder)","Basalte (cuir artificiel)"]
["AV45","Label","Burgundy (artificial leather)","Burgund (Kunstleder)","Bourgogne (cuir artificiel)"]
["AV46","Label","Mocha (artificial leather)","Mokka (Kunstleder)","Moka (cuir artificiel)"]
["R39","Switch","Blue","Blau","Bleu"]
["R39","Switch","Red","rot","rouge"]
["R39","Switch","Brown","Braun","marron"]
["R39","Switch","Green","Grün","vert"]
["R39","Switch","Beige","Beige","Beige"]
["R39","Switch","Light gray","Hellgrau","Gris clair"]
["R39","Switch","Marine blue","Marineblau","Bleu marine"]
["R39","Switch","Emerald green","Smaragdgrün","vert émeraude"]
["R39","Switch","Ruby red","Rubinrot","rouge rubis"]
["R39","Switch","Pearl white","Perlweiss","Perle blanche"]
["R39","Switch","Walnut brown","Walnussbraun","Marron"]
["R39","Switch","Safran yellow","Safran-Gelb","Jaune safran"]
["R39","Switch","Olive (woven textile)","Olive (gewebtes Textil)","Olive (textile tissé)"]
["R39","Switch","Granite (woven textile)","Granit (gewebtes Textil)","Granite (textile tissé)"]
["R39","Switch","Bordeaux (woven textile)","Bordeaux (gewebtes Textil)","Bordeaux (textile tissé)"]
["R39","Switch","Marble (woven textile)","Marmor (gewebtes Textil)","Marbre (textile tissé)"]
["R39","Switch","Ivory (woven textile)","Elfenbein (gewebtes Textil)","Ivoire (textile tissé)"]
["R39","Switch","Basalt (artificial leather)","Basalt (Kunstleder)","Basalte (cuir artificiel)"]
["R39","Switch","Burgundy (artificial leather)","Burgund (Kunstleder)","Bourgogne (cuir artificiel)"]
["R39","Switch","Mocha (artificial leather)","Mokka (Kunstleder)","Moka (cuir artificiel)"]
["R40","Dropdown","Yes","Ja","Oui"]
["R40","Dropdown","No","Nein","Non"]
["R41","Dropdown","Yes","Ja","Oui"]
["R41","Dropdown","No","Nein","Non"]
["R42","Dropdown","Yes","Ja","Oui"]
["R42","Dropdown","No","Nein","Non"]
["R43","Dropdown","On downstairs side (standard)","Talseitig","Côté bas (standard)"]
["R43","Dropdown","On upstairs side (optional)","Bergseitig","Du côté de l'étage (facultatif)"]
["R44","Dropdown","Membrane keypad (standard)","Folientastatur (Standard)","Clavier à membrane (standard)"]
["R44","Dropdown","Big push buttons","Großer Taster","Gros boutons poussoirs"]
["R45","Dropdown","Without key","Ohne Schlüssel","Sans clé"]
["R45","Dropdown","Mini key","Minischlüssel","Mini clé"]
["R47","Dropdown","Handset","Handkassette","Combiné"]
["R47","Dropdown","Wall-mounted","Wantmontiert","Mural"]
["R47","Dropdown","Pillar-mounted","Stützenmontiert","Monté sur pilier"]
["C49","Label","Further options","Zusätzliche Optionen"]
["D50","Label","Plastic cover for outdoor stairlift","Plastic cover for outdoor stairlift"]
["D54","Label","Warranty time","Warranty time"]
["D55","Label","Stainless steel label","Stainless steel label"]
["D56","Label","Transport box","Transportbox"]
["D59","Label","Drawing time urgency in working days","Drawing time urgency in days"]
["D60","Label","Service display","Service display"]
["D61","Label","Plastic cover for footplates","Kunststoffabdeckung für Stützenfüße"]
["D62","Label","Stand-up seat version (up to 120 kg)","Variante Stehsitz (bis zu 120 kg)"]
["D63","Label","Higher loading capacity of 145kg","Höhere Traglast bis 145 kg"]
["D64","Label","Optional user dimensions","Benutzergröße (optional)"]
["D65","Label","Extra heavy batteries","Extra starke Batterien"]
["R64","Label","Height from seat to head:","Maß Sitz bis Kopf"]
["AC64","Label","Distance from back to knees:","Maß Rücken bis Knie"]
["R50","Dropdown","Yes","Ja","Oui"]
[{"$f":"A146","v":"R50"},"Dropdown","No","Nein","Non"]
["R60","Dropdown","Yes","Ja","Oui"]
[{"$f":"A148","v":"R60"},"Dropdown","No","Nein","Non"]
["R61","Dropdown","Yes","Ja","Oui"]
[{"$f":"A150","v":"R61"},"Dropdown","No","Nein","Non"]
["R62","Dropdown","Yes","Ja","Oui"]
[{"$f":"A152","v":"R62"},"Dropdown","No","Nein","Non"]
["R63","Dropdown","Yes","Ja","Oui"]
[{"$f":"A154","v":"R63"},"Dropdown","No","Nein","Non"]
["C67","Label","Supporting structure","Art der Befestigung"]
["D68","Label","Fixing of the rails","Fixierung der Schiene"]
["R68","Dropdown","into the steps (standard)","Auf Stützen in die Treppe"]
["R68","Dropdown","clamp fixing on the steps","Mit Klemmen an die Treppe"]
["R68","Dropdown","on the wall with supporting pillars","An die Wand"]
["C72","Label","Additional information","Zusätzliche Information"]
["C81","Label","Delivery date","Lieferdatim:"]
["W81","Label","Prepared by","Bearbeitet von:"]
["K81","Label","Week","Woche","la semaine"]

{"sheet":"Setup","index":4,"n_rows":1,"n_cols":2,"rows_kept":1,"cut":false,"hidden":true,"merged":[]}
["Language","English"]